bitfinex/quotes_BTCUSD_20241116
["timestamp","ask_amount","ask_price","bid_price","bid_amount"]
[1731760986674,0.64826255,90905.0,90904.0,0.110005]
[1731760989428,0.64826255,90905.0,90901.0,0.110009]
[1731760989657,0.64826255,90905.0,90888.0,0.220049]
[1731760989658,0.005,90904.0,90880.0,0.22007]
[1731760989896,0.64826255,90905.0,90880.0,0.22007]
[1731760989897,0.110012,90899.0,90886.0,0.16556566]
[1731760990183,0.65326255,90898.0,90897.0,0.110014]
[1731760990414,0.64826255,90898.0,90897.0,0.110014]
[1731760991319,0.5392,90898.0,90897.0,0.110014]
[1731760992012,0.5392,90898.0,90889.0,0.220048]
[1731760992242,0.5392,90898.0,90855.0,0.12527892]
[1731760992243,0.64826255,90898.0,90883.0,0.220063]
[1731760992478,0.64826255,90898.0,90880.0,0.12527892]
[1731760992479,0.64826255,90898.0,90897.0,0.110014]
[1731760994737,0.64911945,90898.0,90897.0,0.110014]
[1731760995390,0.0008569,90898.0,90897.0,0.110014]
[1731761003136,0.0008569,90898.0,90897.0,0.115014]
[1731761007579,0.0008569,90898.0,90897.0,0.1397272]
[1731761010320,0.0008569,90898.0,90897.0,0.24878975]
[1731761022481,0.5392,90931.0,90914.0,0.005]
[1731761022703,0.001713,90943.0,90925.0,0.23525892]
[1731761022704,0.5392,90940.0,90925.0,0.23525892]
[1731761023349,0.5392,90940.0,90925.0,0.24025892]
[1731761024681,0.5392,90940.0,90925.0,0.28487095]
[1731761027329,0.001713,90943.0,90925.0,0.3939335]
[1731761027577,0.001713,90943.0,90932.0,0.114972]
[1731761027781,0.001713,90943.0,90932.0,0.24025092]
[1731761028185,0.001713,90943.0,90932.0,0.38852984]
[1731761028393,0.0140827,90944.0,90943.0,0.005]
[1731761028633,0.17964836,90944.0,90943.0,0.24023692]
[1731761028839,0.0140827,90944.0,90943.0,0.24023692]
[1731761029249,0.0140827,90944.0,90943.0,0.109958]
[1731761030364,0.0140827,90944.0,90943.0,0.114958]
[1731761031265,0.0140827,90944.0,90943.0,0.16048489]
[1731761032555,0.0149397,90944.0,90943.0,0.16048489]
[1731761035762,0.0129397,90944.0,90943.0,0.16048489]
[1731761040834,0.0129397,90944.0,90943.0,0.15548489]
[1731761041470,0.0129397,90944.0,90943.0,0.16048489]
[1731761043456,0.12700225,90944.0,90943.0,0.15548489]
[1731761043659,0.005,90942.0,90934.0,0.04545992]
[1731761043904,0.12285925,90944.0,90925.0,0.001714]
[1731761043905,0.005,90938.0,90931.0,0.219945]
[1731761044149,0.005,90938.0,90936.0,0.109966]
[1731761044150,0.10906255,90937.0,90936.0,0.109966]
[1731761044588,0.11406255,90937.0,90936.0,0.109966]
[1731761044785,0.005,90936.0,90932.0,0.219944]
[1731761045006,0.005,90936.0,90934.0,0.109969]
[1731761045007,0.10906255,90935.0,90934.0,0.109969]
[1731761045428,0.10906255,90935.0,90926.0,0.219957]
[1731761045642,0.5392,90937.0,90927.0,0.29084458]
[1731761045848,0.5392,90937.0,90925.0,0.04548708]
[1731761045849,0.27962821,90936.0,90935.0,0.109968]
[1731761046320,0.11406255,90936.0,90935.0,0.109968]
[1731761046796,0.11406255,90936.0,90933.0,0.21994]
[1731761046797,0.11406255,90936.0,90933.0,0.10997]
[1731761047023,0.11406255,90936.0,90928.0,0.219954]
[1731761047256,0.11406255,90936.0,90926.0,0.109979]
[1731761047257,0.005,90931.0,90926.0,0.109979]
[1731761047475,0.10906255,90930.0,90926.0,0.109979]
[1731761047991,0.10906255,90930.0,90925.0,0.04548708]
[1731761047992,0.005,90927.0,90925.0,0.001714]
[1731761048378,0.10906255,90926.0,90925.0,0.001714]
[1731761048813,0.11406255,90926.0,90925.0,0.001714]
[1731761049264,0.11406255,90926.0,90925.0,0.111694]
[1731761049690,0.11406255,90926.0,90925.0,0.001714]
[1731761050359,0.11406255,90926.0,90925.0,0.111694]
[1731761051961,0.65326255,90926.0,90925.0,0.111694]
[1731761054895,0.65326255,90926.0,90925.0,0.15560781]
[1731761055345,0.64826255,90926.0,90925.0,0.15560781]
[1731761055557,0.5392,90926.0,90925.0,0.15560781]
[1731761057722,0.005,90939.0,90938.0,0.109965]
[1731761057986,0.005,90939.0,90933.0,0.219941]
[1731761057987,0.005,90941.0,90939.0,0.109963]
[1731761058193,0.005,90940.0,90939.0,0.109963]
[1731761058857,0.005,90942.0,90935.0,0.219937]
[1731761059073,0.0137967,90944.0,90943.0,0.109958]
[1731761059348,0.0137967,90944.0,90910.0,0.21837754]
[1731761059349,0.005,90927.0,90925.0,0.001714]
[1731761059564,0.22904155,90926.0,90925.0,0.001714]
[1731761060441,0.23104155,90926.0,90925.0,0.001714]
[1731761063550,0.11406255,90926.0,90925.0,0.001714]
[1731761063765,0.65326255,90926.0,90925.0,0.111694]
[1731761065076,0.65326255,90926.0,90925.0,0.001714]
[1731761065290,0.65326255,90926.0,90925.0,0.111694]
[1731761065985,0.76324155,90926.0,90925.0,0.001714]
[1731761066254,0.65326255,90926.0,90925.0,0.001714]
[1731761066467,0.76324155,90926.0,90925.0,0.001714]
[1731761066685,0.76524155,90926.0,90925.0,0.001714]
[1731761066940,0.79824155,90926.0,90925.0,0.001714]
[1731761067841,0.77524155,90926.0,90925.0,0.001714]
[1731761071172,0.65326255,90926.0,90925.0,0.001714]
[1731761071391,0.76324155,90926.0,90925.0,0.001714]
[1731761072080,0.76824155,90926.0,90925.0,0.001714]
[1731761072324,0.76324155,90926.0,90925.0,0.001714]
[1731761073208,0.76524155,90926.0,90925.0,0.001714]
[1731761074186,0.77024155,90926.0,90925.0,0.001714]
[1731761074848,0.65326255,90926.0,90925.0,0.001714]
[1731761075113,0.65326255,90926.0,90925.0,0.111694]
[1731761075979,0.65326255,90926.0,90925.0,0.001714]
[1731761076196,0.76324155,90926.0,90925.0,0.001714]
[1731761077823,0.65326255,90926.0,90925.0,0.001714]
[1731761078043,0.65526255,90926.0,90925.0,0.001714]
[1731761078733,0.65326255,90926.0,90925.0,0.111694]
[1731761081795,0.65326255,90926.0,90925.0,0.001714]
[1731761083205,0.65526255,90926.0,90925.0,0.001714]
[1731761084156,0.77524155,90926.0,90925.0,0.001714]
[1731761084379,0.78545538,90926.0,90925.0,0.001714]
[1731761084604,0.9337343,90926.0,90925.0,0.001714]
[1731761084838,0.005,90898.0,90897.0,0.3317542]
[1731761085094,0.11406255,90898.0,90897.0,0.3317542]
[1731761085553,0.005,90898.0,90897.0,0.3317542]
[1731761086271,0.11406255,90898.0,90897.0,0.3317542]
[1731761098201,0.537486,90899.0,90898.0,0.110013]
[1731761098423,0.65154855,90899.0,90898.0,0.110013]
[1731761100743,0.64654855,90899.0,90898.0,0.110013]
[1731761101228,0.65154855,90899.0,90898.0,0.110013]
[1731761101441,0.64654855,90899.0,90898.0,0.110013]
[1731761101664,0.537486,90899.0,90898.0,0.110013]
[1731761101900,0.537486,90899.0,90898.0,0.23529192]
[1731761102349,0.005,90904.0,90899.0,0.220022]
[1731761102569,0.537486,90908.0,90899.0,0.220022]
[1731761102570,0.005,90902.0,90899.0,0.220022]
[1731761102797,0.11406255,90902.0,90899.0,0.220022]
[1731761103029,0.11406255,90902.0,90901.0,0.110009]
[1731761103270,0.10906255,90902.0,90901.0,0.110009]
[1731761103490,0.11406255,90902.0,90901.0,0.110009]
[1731761104190,0.11406255,90902.0,90897.0,0.2217402]
[1731761104191,0.109988,90919.0,90897.0,0.2217402]
[1731761104192,0.005,90911.0,90898.0,0.005]
[1731761104402,0.005,90911.0,90910.0,0.109998]
[1731761105128,0.005,90911.0,90908.0,0.34527892]
[1731761105356,0.005,90911.0,90910.0,0.109998]
[1731761105868,0.11406255,90911.0,90910.0,0.109998]
[1731761106120,0.005,90911.0,90910.0,0.109998]
[1731761106338,0.005,90914.0,90913.0,0.109995]
[1731761109965,0.005,90914.0,90913.0,0.15567054]
[1731761112074,0.16556566,90922.0,90914.0,0.219988]
[1731761112075,0.005,90922.0,90914.0,0.219988]
[1731761112344,0.005,90922.0,90920.0,0.109986]
[1731761112345,0.16556566,90921.0,90920.0,0.109986]
[1731761112589,0.537486,90930.0,90924.0,0.109981]
[1731761112801,0.005,90934.0,90924.0,0.109981]
[1731761113244,0.005,90935.0,90924.0,0.109981]
[1731761113522,0.537486,90936.0,90924.0,0.109981]
[1731761113976,0.16556566,90931.0,90924.0,0.109981]
[1731761115129,0.16556566,90931.0,90924.0,0.15516089]
[1731761122313,0.005,90939.0,90924.0,0.16016089]
[1731761122521,0.537486,90942.0,90924.0,0.16016089]
[1731761122735,0.005,90940.0,90924.0,0.16016089]
[1731761122950,0.005,90939.0,90924.0,0.16016089]
[1731761123607,0.17056566,90943.0,90924.0,0.16016089]
[1731761123836,0.16556566,90943.0,90924.0,0.16016089]
[1731761125578,0.005,90941.0,90924.0,0.16016089]
[1731761126672,0.005,90942.0,90924.0,0.16016089]
[1731761126886,0.16556566,90943.0,90924.0,0.16016089]
[1731761127978,0.16556566,90943.0,90924.0,0.26922344]
[1731761128194,0.16556566,90943.0,90942.0,0.10996]
[1731761128415,0.16556566,90943.0,90942.0,0.23523892]
[1731761128885,0.0137967,90944.0,90943.0,0.109958]
[1731761130613,0.12785925,90944.0,90943.0,0.109958]
[1731761130826,0.12785925,90944.0,90940.0,0.219923]
[1731761131041,0.12785925,90944.0,90929.0,0.219949]
[1731761131042,0.005,90941.0,90929.0,0.219949]
[1731761131289,0.11106255,90943.0,90905.0,0.16556566]
[1731761131290,0.005,90936.0,90917.0,0.21998]
[1731761131525,0.64854855,90940.0,90913.0,0.12527892]
[1731761131526,0.005,90928.0,90913.0,0.12527892]
[1731761131741,0.005,90922.0,90905.0,0.16556566]
[1731761131955,0.005,90922.0,90898.0,0.12699312]
[1731761131956,0.109979,90926.0,90898.0,0.13199312]
[1731761131957,0.005,90919.0,90898.0,0.13199312]
[1731761132166,0.005,90919.0,90918.0,0.109989]
[1731761132378,0.65154855,90919.0,90918.0,0.109989]
[1731761132615,0.005,90911.0,90905.0,0.220007]
[1731761132831,0.005,90911.0,90907.0,0.220005]
[1731761133039,0.005,90911.0,90910.0,0.109998]
[1731761133462,0.537486,90919.0,90908.0,0.220002]
[1731761133463,0.005,90912.0,90911.0,0.109997]
[1731761133689,0.10906255,90917.0,90908.0,0.220002]
[1731761133690,0.005,90911.0,90908.0,0.220002]
[1731761133933,0.005,90911.0,90910.0,0.109998]
[1731761133934,0.11406255,90911.0,90910.0,0.109998]
[1731761134795,0.10906255,90911.0,90910.0,0.109998]
[1731761135253,0.11406255,90911.0,90910.0,0.109998]
[1731761136802,0.11406255,90911.0,90910.0,0.15377291]
[1731761137439,0.11406255,90911.0,90910.0,0.109998]
[1731761138871,0.11406255,90911.0,90910.0,0.15415327]
[1731761139839,0.005,90911.0,90910.0,0.15415327]
[1731761140715,0.005,90911.0,90910.0,0.109998]
[1731761141141,0.005,90911.0,90905.0,0.12699312]
[1731761141142,0.005,90913.0,90909.0,0.22]
[1731761141351,0.005,90911.0,90910.0,0.109998]
[1731761141997,0.005,90911.0,90909.0,0.22]
[1731761142213,0.10906255,90913.0,90909.0,0.22]
[1731761142214,0.11406255,90913.0,90912.0,0.109996]
[1731761145255,0.10906255,90913.0,90912.0,0.109996]
[1731761145478,0.537486,90917.0,90912.0,0.109996]
[1731761145479,0.537486,90917.0,90916.0,0.109991]
[1731761146419,0.65154855,90917.0,90916.0,0.109991]
[1731761146665,0.005,90916.0,90908.0,0.0448161]
[1731761146916,0.005,90912.0,90911.0,0.109997]
[1731761147141,0.11406255,90912.0,90911.0,0.109997]
[1731761148360,0.11406255,90912.0,90907.0,0.220002]
[1731761148361,0.005,90906.0,90905.0,0.0017142]
[1731761148629,0.11406255,90906.0,90905.0,0.1117182]
[1731761148880,0.11406255,90906.0,90905.0,0.0017142]
[1731761149620,0.11406255,90906.0,90905.0,0.1117182]
[1731761152635,0.65154855,90906.0,90905.0,0.1117182]
[1731761155831,0.542486,90906.0,90905.0,0.1117182]
[1731761156063,0.005,90924.0,90910.0,0.109998]
[1731761156064,0.005,90911.0,90910.0,0.109998]
[1731761156326,0.11406255,90911.0,90910.0,0.109998]
[1731761157926,0.11406255,90911.0,90905.0,0.0017142]
[1731761158181,0.539486,90918.0,90905.0,0.0017142]
[1731761158182,0.005,90908.0,90907.0,0.110002]
[1731761158391,0.11406255,90908.0,90907.0,0.110002]
[1731761161540,0.65154855,90908.0,90907.0,0.110002]
[1731761162297,0.65154855,90908.0,90905.0,0.1117182]
[1731761162538,0.005,90906.0,90905.0,0.0017142]
[1731761162771,0.11406255,90906.0,90905.0,0.0017142]
[1731761164027,0.11406255,90906.0,90905.0,0.1117182]
[1731761164765,0.11406255,90906.0,90905.0,0.0017142]
[1731761165251,0.11406255,90906.0,90905.0,0.1117182]
[1731761165710,0.11406255,90906.0,90905.0,0.0017142]
[1731761167375,0.65154855,90906.0,90905.0,0.0017142]
[1731761167825,0.65154855,90906.0,90905.0,0.1117182]
[1731761169494,0.542486,90906.0,90905.0,0.1117182]
[1731761169740,0.542486,90906.0,90905.0,0.0017142]
[1731761169741,0.65154855,90906.0,90905.0,0.0017142]
[1731761170184,0.76155155,90906.0,90905.0,0.0017142]
[1731761170436,0.76655155,90906.0,90905.0,0.0017142]
[1731761170680,0.79155155,90906.0,90905.0,0.0017142]
[1731761170915,0.79155155,90906.0,90905.0,0.00858634]
[1731761170916,0.80175504,90906.0,90905.0,0.00858634]
[1731761171188,0.80175504,90906.0,90905.0,0.00858633]
[1731761171415,0.79155155,90906.0,90905.0,0.00858633]
[1731761171649,0.79155155,90906.0,90905.0,0.0017142]
[1731761171872,0.79155155,90906.0,90905.0,0.00858628]
[1731761172871,0.79155155,90906.0,90905.0,0.00858627]
[1731761174971,0.79155155,90906.0,90905.0,0.0017142]
[1731761175723,0.79655155,90906.0,90905.0,0.0017142]
[1731761175946,0.79655155,90906.0,90898.0,0.0017142]
[1731761175948,0.145012,90899.0,90898.0,0.0017142]
[1731761176186,0.79484635,90899.0,90898.0,0.0017142]
[1731761176408,0.92012527,90899.0,90898.0,0.0017142]
[1731761176632,1.294404,90899.0,90898.0,0.0017142]
[1731761176874,1.18544814,90899.0,90898.0,0.0017142]
[1731761177131,0.95298889,90899.0,90898.0,0.0017142]
[1731761177400,0.80505236,90899.0,90898.0,0.0017142]
[1731761177650,0.8884656,90899.0,90898.0,0.0017142]
[1731761177898,0.65683435,90899.0,90898.0,0.00858635]
[1731761179160,0.65183435,90899.0,90898.0,0.00858621]
[1731761179393,0.64983435,90899.0,90898.0,0.11859921]
[1731761179648,0.64983435,90899.0,90898.0,0.00858621]
[1731761180356,0.75984635,90899.0,90898.0,0.00858621]
[1731761180585,0.78984635,90899.0,90898.0,0.00858621]
[1731761181604,0.79484635,90899.0,90898.0,0.00858621]
[1731761181834,0.79484635,90899.0,90898.0,0.0017142]
[1731761182079,1.16900988,90899.0,90898.0,0.0017142]
[1731761182302,1.36621817,90899.0,90898.0,0.0017142]
[1731761182559,1.36621878,90899.0,90898.0,0.0017142]
[1731761182809,1.16901049,90899.0,90898.0,0.0017142]
[1731761183062,0.150013,90898.0,90897.0,0.00065036]
[1731761183305,0.63323969,90898.0,90897.0,0.00065036]
[1731761183536,0.830342,90898.0,90897.0,0.00065036]
[1731761183740,0.62303926,90898.0,90897.0,0.00065036]
[1731761184019,0.25907555,90898.0,90897.0,0.00065036]
[1731761184249,0.40689837,90898.0,90897.0,0.00065036]
[1731761184755,0.25907555,90898.0,90897.0,0.00065036]
[1731761185253,0.005,90883.0,90882.0,0.110032]
[1731761185487,0.11406255,90883.0,90882.0,0.1169054]
[1731761185716,0.11406255,90883.0,90882.0,0.110032]
[1731761185962,0.005,90880.0,90879.0,0.110035]
[1731761186218,0.64918399,90880.0,90879.0,0.110035]
[1731761186479,0.64918399,90880.0,90879.0,0.11690832]
[1731761186480,0.65118399,90880.0,90879.0,0.11690832]
[1731761186700,0.65118399,90880.0,90879.0,0.12790564]
[1731761186921,0.65118399,90880.0,90879.0,0.11690832]
[1731761187643,0.64918399,90880.0,90879.0,0.11690832]
[1731761188780,0.65118399,90880.0,90879.0,0.11690832]
[1731761189006,0.65118399,90880.0,90879.0,0.110035]
[1731761189295,0.65118399,90880.0,90879.0,0.12790507]
[1731761189518,0.65118399,90880.0,90879.0,0.12790508]
[1731761189754,0.64918399,90880.0,90879.0,0.12790508]
[1731761189987,0.64918399,90880.0,90879.0,0.11690811]
[1731761191165,0.64918399,90880.0,90879.0,0.11690803]
[1731761192825,0.54012144,90880.0,90879.0,0.11690803]
[1731761193056,0.64918399,90880.0,90879.0,0.11690803]
[1731761193302,0.64918399,90880.0,90879.0,0.00858783]
[1731761193524,0.65118399,90880.0,90879.0,0.00858783]
[1731761193771,0.65118399,90880.0,90879.0,0.11862383]
[1731761194009,0.65118399,90880.0,90879.0,0.00858783]
[1731761194482,0.65118399,90880.0,90879.0,0.11862383]
[1731761194728,0.65118399,90880.0,90879.0,0.00858783]
[1731761196159,0.65118399,90880.0,90879.0,0.0017148]
[1731761196379,0.65118399,90880.0,90879.0,0.00858798]
[1731761196866,0.76121899,90880.0,90879.0,0.00858798]
[1731761197113,0.78921899,90880.0,90879.0,0.00858798]
[1731761198085,0.78921899,90880.0,90879.0,0.0017148]
[1731761199072,0.78921899,90880.0,90879.0,0.00858845]
[1731761199325,0.78721899,90880.0,90879.0,0.00858845]
[1731761199613,0.64918399,90880.0,90879.0,0.11862458]
[1731761200085,0.64918399,90880.0,90879.0,0.110036]
[1731761200320,0.64918399,90880.0,90879.0,0.12103207]
[1731761200544,0.16556566,90897.0,90879.0,0.01099607]
[1731761200545,0.005,90884.0,90879.0,0.01099607]
[1731761200769,0.002,90897.0,90881.0,0.220066]
[1731761200770,0.005,90886.0,90881.0,0.220066]
[1731761201004,0.10906255,90886.0,90885.0,0.23530792]
[1731761201249,0.53512144,90891.0,90890.0,0.110023]
[1731761201250,0.54012144,90891.0,90890.0,0.110023]
[1731761201472,0.54012144,90891.0,90890.0,0.12101907]
[1731761201755,0.53512144,90891.0,90890.0,0.12101907]
[1731761201976,0.16556566,90917.0,90890.0,0.23104007]
[1731761201977,0.005,90902.0,90890.0,0.23104007]
[1731761202189,0.7006871,90905.0,90890.0,0.23104007]
[1731761202190,0.17056566,90905.0,90904.0,0.110006]
[1731761202681,0.16556566,90905.0,90904.0,0.110006]
[1731761202907,0.005,90912.0,90905.0,0.110004]
[1731761203138,0.005,90911.0,90905.0,0.110004]
[1731761203807,0.005,90914.0,90905.0,0.110004]
[1731761204022,0.005,90912.0,90905.0,0.110004]
[1731761204501,0.11491995,90906.0,90905.0,0.110004]
[1731761204721,0.005,90904.0,90903.0,0.04493897]
[1731761204956,0.11406255,90904.0,90903.0,0.09292659]
[1731761205181,0.11406255,90904.0,90885.0,0.05]
[1731761205182,0.005,90903.0,90888.0,0.09987468]
[1731761205431,0.005,90903.0,90885.0,0.05]
[1731761205432,0.10906255,90902.0,90901.0,0.110009]
[1731761205877,0.64418399,90902.0,90901.0,0.110009]
[1731761206091,0.64418399,90902.0,90899.0,0.20971368]
[1731761206281,0.64418399,90902.0,90901.0,0.110009]
[1731761207439,0.64418399,90902.0,90901.0,0.12527892]
[1731761207667,0.64418399,90902.0,90898.0,0.110012]
[1731761207897,0.005,90899.0,90898.0,0.12527892]
[1731761208184,0.005,90899.0,90898.0,0.19497868]
[1731761208185,0.11406255,90899.0,90898.0,0.19497868]
[1731761208396,0.11406255,90899.0,90898.0,0.15466644]
[1731761208840,0.11406255,90899.0,90894.0,0.220035]
[1731761209056,0.53512144,90902.0,90885.0,0.09503637]
[1731761209057,0.005,90890.0,90889.0,0.110024]
[1731761209278,0.005,90890.0,90886.0,0.30310776]
[1731761209279,0.002,90887.0,90886.0,0.30310776]
[1731761209509,0.002,90887.0,90885.0,0.17527892]
[1731761209510,0.002,90887.0,90885.0,0.13926576]
[1731761209511,0.005,90886.0,90885.0,0.13926576]
[1731761209728,0.005,90886.0,90865.0,0.16556566]
[1731761209729,0.005,90881.0,90880.0,0.330104]
[1731761209932,0.65118399,90881.0,90880.0,0.330104]
[1731761210149,0.65118399,90881.0,90880.0,0.08718353]
[1731761210379,0.65118399,90881.0,90880.0,0.08680783]
[1731761211290,0.64918399,90881.0,90880.0,0.08680783]
[1731761211511,0.64918399,90881.0,90880.0,0.12527892]
[1731761211728,0.53512144,90881.0,90880.0,0.23531392]
[1731761212206,0.53512144,90881.0,90880.0,0.38990322]
[1731761212440,0.53512144,90881.0,90880.0,0.40603131]
[1731761212670,0.16556566,90904.0,90880.0,0.40603131]
[1731761212671,0.005,90896.0,90887.0,0.023]
[1731761212894,0.005,90902.0,90897.0,0.023]
[1731761213127,0.005,90902.0,90896.0,0.220031]
[1731761213128,0.16556566,90904.0,90902.0,0.023]
[1731761213360,0.0008574,90906.0,90903.0,0.00687131]
[1731761213798,0.0008574,90906.0,90905.0,0.110004]
[1731761214026,0.10991995,90906.0,90905.0,0.110004]
[1731761215160,0.10991995,90906.0,90905.0,0.11687452]
[1731761215375,0.10991995,90906.0,90905.0,0.13987452]
[1731761216085,0.10991995,90906.0,90905.0,0.133004]
[1731761217421,0.10991995,90906.0,90905.0,0.25828292]
[1731761218961,0.11491995,90906.0,90905.0,0.25828292]
[1731761219587,0.11491995,90906.0,90905.0,0.14827892]
[1731761219797,0.11491995,90906.0,90905.0,0.25828292]
[1731761220161,0.11491995,90906.0,90905.0,0.22499684]
[1731761220363,0.11491995,90906.0,90905.0,0.133004]
[1731761221616,0.0263298,90906.0,90905.0,0.133004]
[1731761221826,0.0283298,90906.0,90905.0,0.133004]
[1731761222038,0.10836155,90906.0,90905.0,0.023]
[1731761222241,0.10836155,90906.0,90905.0,0.110004]
[1731761222441,0.110008,90903.0,90899.0,0.023]
[1731761222649,0.110012,90899.0,90898.0,0.0017148]
[1731761222855,0.21907455,90899.0,90898.0,0.0017148]
[1731761223063,0.10906255,90899.0,90898.0,0.0017148]
[1731761223723,0.10906255,90899.0,90898.0,0.0247148]
[1731761224167,0.10906255,90899.0,90898.0,0.1347278]
[1731761225197,0.10901397,90899.0,90898.0,0.1347278]
[1731761225613,0.10901397,90899.0,90898.0,0.1397278]
[1731761225834,0.16556566,90929.0,90918.0,0.023]
[1731761226042,0.3520799,90924.0,90918.0,0.023]
[1731761226270,0.4620619,90924.0,90918.0,0.023]
[1731761226486,0.4620619,90924.0,90907.0,0.220004]
[1731761226487,0.3520799,90924.0,90917.0,0.023]
[1731761226706,0.4620619,90924.0,90915.0,0.109992]
[1731761226923,0.3520799,90924.0,90923.0,0.109983]
[1731761227185,0.3520799,90924.0,90923.0,0.132983]
[1731761227415,0.46114245,90924.0,90923.0,0.132983]
[1731761228303,0.44463075,90924.0,90923.0,0.132983]
[1731761229839,0.400707,90924.0,90923.0,0.132983]
[1731761231641,0.25209343,90924.0,90923.0,0.109983]
[1731761233232,0.25209343,90924.0,90918.0,0.219978]
[1731761233507,0.10906255,90923.0,90913.0,0.023]
[1731761233728,0.10906255,90923.0,90915.0,0.109992]
[1731761233947,0.10906255,90923.0,90917.0,0.109989]
[1731761233948,0.21904555,90923.0,90917.0,0.109989]
[1731761234165,0.10906255,90918.0,90916.0,0.109991]
[1731761234392,0.10906255,90918.0,90902.0,0.330025]
[1731761234393,0.10906255,90917.0,90902.0,0.330025]
[1731761234608,0.10906255,90917.0,90901.0,0.16556566]
[1731761234824,0.10906255,90917.0,90899.0,0.220024]
[1731761234825,0.10906255,90917.0,90912.0,0.109996]
[1731761235064,0.10906255,90917.0,90895.0,0.005]
[1731761235065,0.10906255,90917.0,90901.0,0.220019]
[1731761235285,0.10906255,90905.0,90892.0,0.38560466]
[1731761235504,0.36301388,90916.0,90892.0,0.38560466]
[1731761235505,0.11001,90901.0,90892.0,0.38560466]
[1731761235720,0.10906255,90899.0,90896.0,0.110014]
[1731761235941,0.10906255,90899.0,90892.0,0.220039]
[1731761236157,0.10906255,90899.0,90895.0,0.110017]
[1731761236411,0.10906255,90899.0,90896.0,0.110015]
[1731761236623,0.10906255,90899.0,90883.0,0.22006]
[1731761236624,0.25209343,90899.0,90883.0,0.22006]
[1731761236838,0.36210543,90899.0,90883.0,0.22006]
[1731761237078,0.36710543,90899.0,90880.0,0.16556566]
[1731761237316,0.49238435,90899.0,90880.0,0.16556566]
[1731761237768,0.36710543,90899.0,90880.0,0.16556566]
[1731761238012,0.36710543,90899.0,90882.0,0.110032]
[1731761238443,0.36710543,90899.0,90880.0,0.38563366]
[1731761238666,0.36710543,90899.0,90884.0,0.110029]
[1731761238908,0.36710543,90899.0,90880.0,0.38563366]
[1731761239339,0.41165034,90899.0,90884.0,0.11003]
[1731761239594,0.41165034,90899.0,90885.0,0.220058]
[1731761239595,0.25709343,90899.0,90885.0,0.220058]
[1731761239877,0.25709343,90899.0,90894.0,0.110017]
[1731761240042,0.36710543,90899.0,90889.0,0.220046]
[1731761240475,0.25209343,90899.0,90889.0,0.220046]
[1731761240693,0.25209343,90899.0,90898.0,0.1117278]
[1731761243017,0.25209343,90899.0,90898.0,0.11859966]
[1731761243452,0.25709343,90899.0,90898.0,0.0017148]
[1731761243698,0.25209343,90899.0,90898.0,0.0017148]
[1731761243924,0.25209343,90899.0,90898.0,0.1117278]
[1731761244352,0.49238435,90899.0,90898.0,0.0017148]
[1731761245021,0.36710543,90899.0,90898.0,0.0017148]
[1731761245705,0.25709343,90899.0,90898.0,0.0017148]
[1731761245918,0.36710543,90899.0,90898.0,0.0017148]
[1731761248273,0.25709343,90899.0,90898.0,0.0017148]
[1731761248485,0.25209343,90899.0,90898.0,0.0017148]
[1731761248714,0.25709343,90899.0,90898.0,0.0017148]
[1731761249171,0.36710543,90899.0,90898.0,0.0017148]
[1731761254417,0.005,90894.0,90883.0,0.110031]
[1731761254641,0.10906255,90888.0,90883.0,0.110031]
[1731761255288,0.10906255,90888.0,90884.0,0.110029]
[1731761255619,0.10906255,90888.0,90887.0,0.110026]
[1731761259748,0.10906255,90888.0,90879.0,0.0017148]
[1731761259973,0.14303088,90887.0,90880.0,0.110035]
[1731761260197,0.14303088,90887.0,90879.0,0.0017148]
[1731761260198,0.10906255,90886.0,90879.0,0.0017148]
[1731761260410,0.10906255,90886.0,90881.0,0.110033]
[1731761260628,0.10906255,90886.0,90879.0,0.0017148]
[1731761260629,0.10906255,90886.0,90885.0,0.110029]
[1731761261070,0.10906255,90886.0,90880.0,0.44014]
[1731761261071,0.10906255,90886.0,90882.0,0.110031]
[1731761261291,0.10906255,90886.0,90879.0,0.0017148]
[1731761261744,0.10906255,90886.0,90880.0,0.0068736]
[1731761262002,0.10906255,90886.0,90879.0,0.0017148]
[1731761262003,0.110032,90883.0,90879.0,0.0017148]
[1731761262236,0.10906255,90882.0,90879.0,0.0017148]
[1731761262723,0.10906255,90880.0,90879.0,0.0017148]
[1731761263193,0.21909755,90880.0,90879.0,0.0017148]
[1731761263640,0.10906255,90880.0,90879.0,0.0017148]
[1731761264084,0.10906255,90880.0,90879.0,0.00858878]
[1731761265227,0.25209343,90880.0,90879.0,0.00858878]
[1731761265696,0.25209343,90880.0,90879.0,0.00858871]
[1731761266403,0.25209343,90880.0,90879.0,0.0017148]
[1731761266404,0.25180184,90880.0,90879.0,0.0017148]
[1731761266626,0.25180184,90880.0,90879.0,0.00858899]
[1731761266873,0.25180184,90880.0,90879.0,0.11862499]
[1731761267120,0.22380596,90880.0,90879.0,0.0017148]
[1731761267353,0.36683684,90880.0,90879.0,0.0017148]
[1731761267584,0.36683684,90880.0,90879.0,0.00858881]
[1731761267812,0.40172002,90880.0,90879.0,0.0017148]
[1731761272635,0.40172002,90880.0,90864.0,0.0008569]
[1731761272636,0.115053,90865.0,90864.0,0.0008569]
[1731761272877,0.115053,90865.0,90849.0,0.16556566]
[1731761272878,0.005,90858.0,90849.0,0.16556566]
[1731761273105,0.21913355,90850.0,90849.0,0.16556566]
[1731761273329,0.110075,90847.0,90835.0,0.110089]
[1731761273581,0.21913755,90847.0,90846.0,0.00773307]
[1731761274737,0.21913755,90847.0,90846.0,0.000857]
[1731761276981,0.36131153,90847.0,90846.0,0.000857]
[1731761279098,0.25123653,90847.0,90846.0,0.110933]
[1731761279316,0.25123653,90847.0,90846.0,0.1178091]
[1731761279772,0.25123653,90847.0,90846.0,0.110933]
[1731761280200,0.10906255,90847.0,90846.0,0.110933]
[1731761282970,0.21913755,90847.0,90846.0,0.000857]
[1731761283198,0.36131153,90847.0,90846.0,0.000857]
[1731761283657,0.25123653,90847.0,90846.0,0.000857]
[1731761284776,0.36131153,90847.0,90846.0,0.000857]
[1731761285017,0.25123653,90847.0,90846.0,0.000857]
[1731761285489,0.36131153,90847.0,90846.0,0.000857]
[1731761285725,0.25123653,90847.0,90846.0,0.000857]
[1731761286009,0.36131153,90847.0,90846.0,0.000857]
[1731761286961,0.25123653,90847.0,90846.0,0.000857]